[Event "Titled Tuesday Blitz April 26 Early 2022"]
[White "Zlatin, Alexander"]
[Black "Narayanan, Srinath"]
[WhiteFideId "2810549"]
[BlackFideId "5018420"]
[WhiteElo "2228"]
[BlackElo "2472"]
[Result "1/2-1/2"]
[Round "04"]
[TimeControl "180+1"]
[Date "2022.04.26"]
[WhiteClock "0:00:05"]
[BlackClock "0:00:16"]

1. d4 {[%clk 0:02:56]}  Nf6 {[%clk 0:02:58]} 2. Nc3 {[%clk 0:02:57]}  d5 {[%clk 0:02:58]} 3. Bf4 {[%clk 0:02:56]}  c6 {[%clk 0:02:55]} 4. e3 {[%clk 0:02:56]}  g6 {[%clk 0:02:54]} 5. h4 {[%clk 0:02:52]}  h5 {[%clk 0:02:53]} 6. Nf3 {[%clk 0:02:50]}  Bg7 {[%clk 0:02:53]} 7. Bd3 {[%clk 0:02:48]}  Bg4 {[%clk 0:02:53]} 8. Qd2 {[%clk 0:02:48]}  Nbd7 {[%clk 0:02:53]} 9. Ne5 {[%clk 0:02:46]}  Nxe5 {[%clk 0:02:42]} 10. Bxe5 {[%clk 0:02:44]}  Qd7 {[%clk 0:02:38]} 11. f3 {[%clk 0:02:43]}  Bf5 {[%clk 0:02:38]} 12. O-O-O {[%clk 0:02:43]}  b5 {[%clk 0:02:36]} 13. Kb1 {[%clk 0:02:40]}  a5 {[%clk 0:02:34]} 14. e4 {[%clk 0:02:34]}  dxe4 {[%clk 0:02:34]} 15. fxe4 {[%clk 0:02:23]}  Bg4 {[%clk 0:02:33]} 16. Rde1 {[%clk 0:01:50]}  a4 {[%clk 0:02:32]} 17. d5 {[%clk 0:01:44]}  O-O {[%clk 0:02:29]} 18. dxc6 {[%clk 0:01:43]}  Qxc6 {[%clk 0:02:30]} 19. Bxb5 {[%clk 0:01:39]}  Qb7 {[%clk 0:02:27]} 20. Bxa4 {[%clk 0:01:21]}  Rxa4 {[%clk 0:01:43]} 21. Nxa4 {[%clk 0:01:22]}  Nxe4 {[%clk 0:01:44]} 22. Rxe4 {[%clk 0:01:09]}  Qxe4 {[%clk 0:01:44]} 23. Bxg7 {[%clk 0:01:08]}  Kxg7 {[%clk 0:01:38]} 24. Nc3 {[%clk 0:01:07]}  Qc4 {[%clk 0:01:25]} 25. b3 {[%clk 0:01:04]}  Qc5 {[%clk 0:01:22]} 26. Kb2 {[%clk 0:00:57]}  Rc8 {[%clk 0:01:22]} 27. Re1 {[%clk 0:00:51]}  e6 {[%clk 0:01:17]} 28. Qe3 {[%clk 0:00:49]}  Qe7 {[%clk 0:01:12]} 29. Qd4+ {[%clk 0:00:44]}  Kg8 {[%clk 0:01:12]} 30. g3 {[%clk 0:00:37]}  Bf5 {[%clk 0:01:11]} 31. Rd1 {[%clk 0:00:34]}  Qc7 {[%clk 0:01:09]} 32. Qe3 {[%clk 0:00:30]}  Qa5 {[%clk 0:01:09]} 33. a4 {[%clk 0:00:26]}  Qb4 {[%clk 0:00:58]} 34. Rd4 {[%clk 0:00:24]}  Qb8 {[%clk 0:00:55]} 35. Rd7 {[%clk 0:00:17]}  Qa8 {[%clk 0:00:40]} 36. Qd2 {[%clk 0:00:13]}  e5 {[%clk 0:00:35]} 37. Rd5 {[%clk 0:00:06]}  e4 {[%clk 0:00:35]} 38. Rd4 {[%clk 0:00:05]}  Kh7 {[%clk 0:00:32]} 39. Qe3 {[%clk 0:00:05]}  Qc6 {[%clk 0:00:32]} 40. Rc4 {[%clk 0:00:05]}  Qb7 {[%clk 0:00:31]} 41. Rxc8 {[%clk 0:00:05]}  Qxc8 {[%clk 0:00:32]} 42. Nxe4 {[%clk 0:00:05]}  Qc6 {[%clk 0:00:23]} 43. Ng5+ {[%clk 0:00:05]}  Kg8 {[%clk 0:00:22]} 44. Qc3 {[%clk 0:00:06]}  Qd5 {[%clk 0:00:19]} 45. a5 {[%clk 0:00:06]}  Qb5 {[%clk 0:00:18]} 46. Qc4 {[%clk 0:00:05]}  Qe5+ {[%clk 0:00:17]} 47. Qc3 {[%clk 0:00:05]}  Qb5 {[%clk 0:00:17]} 48. Qc4 {[%clk 0:00:05]}  Qe5+ {[%clk 0:00:17]} 49. Kb1 {[%clk 0:00:05]}  Qe1+ {[%clk 0:00:16]} 50. Kb2 {[%clk 0:00:05]}  Qe5+ {[%clk 0:00:16]} 1/2-1/2


[Site "https://www.chess.com"]

[Event "Titled Tuesday Blitz April 26 Early 2022"]
[White "Abarca Gonzalez, Nicolas"]
[Black "Vokhidov, Shamsiddin"]
[WhiteFideId "3409422"]
[BlackFideId "14204223"]
[WhiteElo "2504"]
[BlackElo "2611"]
[Result "1-0"]
[Round "05"]
[TimeControl "180+1"]
[Date "2022.04.26"]
[WhiteClock "0:00:55"]
[BlackClock "0:00:09"]

1. e4 {[%clk 0:03:00]}  c5 {[%clk 0:03:00]} 2. Nf3 {[%clk 0:02:59]}  d6 {[%clk 0:03:00]} 3. Bc4 {[%clk 0:02:58]}  Nf6 {[%clk 0:03:00]} 4. e5 {[%clk 0:02:59]}  dxe5 {[%clk 0:02:59]} 5. Nxe5 {[%clk 0:02:59]}  e6 {[%clk 0:02:58]} 6. Qe2 {[%clk 0:03:00]}  Be7 {[%clk 0:02:57]} 7. O-O {[%clk 0:03:00]}  O-O {[%clk 0:02:57]} 8. Re1 {[%clk 0:03:00]}  Nfd7 {[%clk 0:02:56]} 9. Nxf7 {[%clk 0:02:59]}  Kxf7 {[%clk 0:02:44]} 10. Bxe6+ {[%clk 0:02:58]}  Ke8 {[%clk 0:02:43]} 11. Qh5+ {[%clk 0:02:55]}  g6 {[%clk 0:02:35]} 12. Qxh7 {[%clk 0:02:55]}  Rf6 {[%clk 0:02:31]} 13. Qh8+ {[%clk 0:02:36]}  Rf8 {[%clk 0:02:31]} 14. Qg7 {[%clk 0:02:35]}  Rf6 {[%clk 0:02:30]} 15. d4 {[%clk 0:02:28]}  Nf8 {[%clk 0:02:17]} 16. Bxc8 {[%clk 0:02:24]}  Rf7 {[%clk 0:02:18]} 17. Qg8 {[%clk 0:02:02]}  Qxc8 {[%clk 0:02:16]} 18. Bg5 {[%clk 0:02:01]}  Nc6 {[%clk 0:02:13]} 19. Nc3 {[%clk 0:01:58]}  Qf5 {[%clk 0:02:10]} 20. Ne4 {[%clk 0:01:45]}  Rd8 {[%clk 0:01:38]} 21. dxc5 {[%clk 0:01:44]}  Ne5 {[%clk 0:01:21]} 22. f4 {[%clk 0:01:35]}  Rd4 {[%clk 0:01:10]} 23. Nd6+ {[%clk 0:01:17]}  Bxd6 {[%clk 0:01:07]} 24. cxd6 {[%clk 0:01:17]}  Re4 {[%clk 0:00:59]} 25. Rxe4 {[%clk 0:01:12]}  Qxe4 {[%clk 0:00:58]} 26. fxe5 {[%clk 0:01:13]}  Qxe5 {[%clk 0:00:46]} 27. Be7 {[%clk 0:01:01]}  Qxb2 {[%clk 0:00:24]} 28. Rd1 {[%clk 0:00:58]}  Qb6+ {[%clk 0:00:16]} 29. Kh1 {[%clk 0:00:58]}  Qd4 {[%clk 0:00:09]} 30. Qxf7+ {[%clk 0:00:55]} 1-0


[Site "https://www.chess.com"]

[Event "Titled Tuesday Blitz April 26 Early 2022"]
[White "Abdrlauf, Elham"]
[Black "Karolczuk, Iwo"]
[WhiteFideId "1533533"]
[BlackFideId "21816972"]
[WhiteElo "2334"]
[BlackElo "2277"]
[Result "0-1"]
[Round "05"]
[TimeControl "180+1"]
[Date "2022.04.26"]
[WhiteClock "0:00:44"]
[BlackClock "0:00:18"]

1. e4 {[%clk 0:02:57]}  c5 {[%clk 0:02:58]} 2. Nf3 {[%clk 0:02:56]}  d6 {[%clk 0:02:58]} 3. d4 {[%clk 0:02:57]}  cxd4 {[%clk 0:02:59]} 4. Nxd4 {[%clk 0:02:58]}  Nf6 {[%clk 0:02:59]} 5. Nc3 {[%clk 0:02:58]}  a6 {[%clk 0:02:57]} 6. Bc4 {[%clk 0:02:58]}  e6 {[%clk 0:02:54]} 7. Bb3 {[%clk 0:02:58]}  Nbd7 {[%clk 0:02:50]} 8. f4 {[%clk 0:02:55]}  Nc5 {[%clk 0:02:49]} 9. f5 {[%clk 0:02:55]}  e5 {[%clk 0:02:46]} 10. Nde2 {[%clk 0:02:49]}  h6 {[%clk 0:02:38]} 11. Ng3 {[%clk 0:02:43]}  b5 {[%clk 0:02:36]} 12. Be3 {[%clk 0:02:41]}  Qc7 {[%clk 0:02:33]} 13. Qf3 {[%clk 0:02:34]}  Bb7 {[%clk 0:02:31]} 14. O-O-O {[%clk 0:02:34]}  Rc8 {[%clk 0:02:08]} 15. Bd5 {[%clk 0:02:16]}  Bxd5 {[%clk 0:01:36]} 16. Bxc5 {[%clk 0:02:12]}  Qxc5 {[%clk 0:01:13]} 17. exd5 {[%clk 0:02:12]}  b4 {[%clk 0:01:11]} 18. Rd3 {[%clk 0:02:13]}  Rc7 {[%clk 0:00:59]} 19. Re1 {[%clk 0:02:05]}  bxc3 {[%clk 0:00:57]} 20. Rxc3 {[%clk 0:02:06]}  Qa7 {[%clk 0:00:40]} 21. Rxc7 {[%clk 0:01:57]}  Qxc7 {[%clk 0:00:41]} 22. Qd3 {[%clk 0:01:58]}  Be7 {[%clk 0:00:40]} 23. Qxa6 {[%clk 0:01:59]}  O-O {[%clk 0:00:39]} 24. Qd3 {[%clk 0:01:59]}  Qa5 {[%clk 0:00:37]} 25. Kd1 {[%clk 0:01:56]}  Qxa2 {[%clk 0:00:36]} 26. b3 {[%clk 0:01:57]}  Rc8 {[%clk 0:00:35]} 27. c4 {[%clk 0:01:45]}  Rb8 {[%clk 0:00:32]} 28. c5 {[%clk 0:01:39]}  Rxb3 {[%clk 0:00:31]} 29. Qc2 {[%clk 0:01:40]}  Rb1+ {[%clk 0:00:28]} 30. Kd2 {[%clk 0:01:39]}  Rb2 {[%clk 0:00:26]} 31. Rc1 {[%clk 0:00:41]}  Qxd5+ {[%clk 0:00:23]} 32. Ke1 {[%clk 0:00:38]}  Rxc2 {[%clk 0:00:22]} 33. Rxc2 {[%clk 0:00:39]}  dxc5 {[%clk 0:00:23]} 34. Re2 {[%clk 0:00:40]}  e4 {[%clk 0:00:23]} 35. Kf2 {[%clk 0:00:41]}  Qd4+ {[%clk 0:00:23]} 36. Ke1 {[%clk 0:00:41]}  e3 {[%clk 0:00:22]} 37. Kf1 {[%clk 0:00:41]}  Ne4 {[%clk 0:00:21]} 38. Kg1 {[%clk 0:00:39]}  Qd1+ {[%clk 0:00:16]} 39. Nf1 {[%clk 0:00:38]}  Qxe2 {[%clk 0:00:17]} 40. h4 {[%clk 0:00:39]}  Qf2+ {[%clk 0:00:17]} 41. Kh2 {[%clk 0:00:40]}  Qxh4+ {[%clk 0:00:17]} 42. Kg1 {[%clk 0:00:40]}  Qf2+ {[%clk 0:00:18]} 43. Kh2 {[%clk 0:00:41]}  Bd6+ {[%clk 0:00:18]} 44. Ng3 {[%clk 0:00:42]}  Qxg3+ {[%clk 0:00:18]} 45. Kg1 {[%clk 0:00:43]}  Qf2+ {[%clk 0:00:18]} 46. Kh1 {[%clk 0:00:44]}  Qf1# {[%clk 0:00:18]} 0-1


[Site "https://www.chess.com"]

[Event "Titled Tuesday Blitz April 26 Early 2022"]
[White "Abdusattorov, Nodirbek"]
[Black "Bilych, Olexiy"]
[WhiteFideId "14204118"]
[BlackFideId "14156504"]
[WhiteElo "2663"]
[BlackElo "2176"]
[Result "1-0"]
[Round "05"]
[TimeControl "180+1"]
[Date "2022.04.26"]
[WhiteClock "0:00:34"]
[BlackClock "0:00:06"]

1. c4 {[%clk 0:03:00]}  e5 {[%clk 0:02:59]} 2. Nc3 {[%clk 0:03:01]}  Nc6 {[%clk 0:02:59]} 3. Nf3 {[%clk 0:03:01]}  Nf6 {[%clk 0:02:57]} 4. e4 {[%clk 0:03:01]}  Bb4 {[%clk 0:02:48]} 5. d3 {[%clk 0:03:02]}  O-O {[%clk 0:02:47]} 6. a3 {[%clk 0:03:00]}  Bc5 {[%clk 0:02:43]} 7. b4 {[%clk 0:03:00]}  Bd4 {[%clk 0:02:42]} 8. Nxd4 {[%clk 0:02:56]}  Nxd4 {[%clk 0:02:43]} 9. Be2 {[%clk 0:02:52]}  d6 {[%clk 0:02:43]} 10. O-O {[%clk 0:02:52]}  c6 {[%clk 0:02:32]} 11. f4 {[%clk 0:02:53]}  a5 {[%clk 0:02:26]} 12. Rb1 {[%clk 0:02:49]}  axb4 {[%clk 0:02:26]} 13. axb4 {[%clk 0:02:49]}  exf4 {[%clk 0:02:12]} 14. Bxf4 {[%clk 0:02:49]}  Ra3 {[%clk 0:02:12]} 15. Bd2 {[%clk 0:02:30]}  Qb6 {[%clk 0:01:52]} 16. Kh1 {[%clk 0:02:28]}  Nxe2 {[%clk 0:01:51]} 17. Qxe2 {[%clk 0:02:29]}  Bg4 {[%clk 0:01:51]} 18. Qe1 {[%clk 0:02:29]}  Qd4 {[%clk 0:01:48]} 19. Qg3 {[%clk 0:02:01]}  Rxc3 {[%clk 0:01:22]} 20. Bxc3 {[%clk 0:02:02]}  Qxc3 {[%clk 0:01:23]} 21. Rf2 {[%clk 0:02:00]}  Be6 {[%clk 0:01:10]} 22. Qxd6 {[%clk 0:01:33]}  Ra8 {[%clk 0:01:03]} 23. h3 {[%clk 0:01:28]}  h6 {[%clk 0:00:58]} 24. Rbf1 {[%clk 0:01:26]}  Ra1 {[%clk 0:00:43]} 25. Rxa1 {[%clk 0:01:21]}  Qxa1+ {[%clk 0:00:44]} 26. Kh2 {[%clk 0:01:22]}  Qc3 {[%clk 0:00:39]} 27. Rf3 {[%clk 0:01:21]}  Nd7 {[%clk 0:00:37]} 28. Rg3 {[%clk 0:01:15]}  Qe5 {[%clk 0:00:33]} 29. c5 {[%clk 0:01:02]}  h5 {[%clk 0:00:19]} 30. Qxe5 {[%clk 0:00:59]}  Nxe5 {[%clk 0:00:20]} 31. d4 {[%clk 0:01:00]}  Nd7 {[%clk 0:00:20]} 32. Re3 {[%clk 0:00:58]}  Nf6 {[%clk 0:00:20]} 33. Kg3 {[%clk 0:00:58]}  g5 {[%clk 0:00:20]} 34. Kf3 {[%clk 0:00:59]}  Kg7 {[%clk 0:00:20]} 35. Ra3 {[%clk 0:00:59]}  Nd7 {[%clk 0:00:16]} 36. Ra7 {[%clk 0:00:58]}  f5 {[%clk 0:00:15]} 37. Rxb7 {[%clk 0:00:57]}  fxe4+ {[%clk 0:00:14]} 38. Kxe4 {[%clk 0:00:58]}  Kf6 {[%clk 0:00:15]} 39. Ke3 {[%clk 0:00:53]}  h4 {[%clk 0:00:11]} 40. b5 {[%clk 0:00:53]}  cxb5 {[%clk 0:00:12]} 41. c6 {[%clk 0:00:53]}  Nf8 {[%clk 0:00:10]} 42. Ke4 {[%clk 0:00:53]}  Ng6 {[%clk 0:00:09]} 43. d5 {[%clk 0:00:52]}  Bf5+ {[%clk 0:00:09]} 44. Kd4 {[%clk 0:00:53]}  Nf4 {[%clk 0:00:08]} 45. d6 {[%clk 0:00:51]}  Ke6 {[%clk 0:00:08]} 46. d7 {[%clk 0:00:50]}  Ke7 {[%clk 0:00:08]} 47. Ke5 {[%clk 0:00:41]}  Be6 {[%clk 0:00:03]} 48. Rxb5 {[%clk 0:00:36]}  Bxd7 {[%clk 0:00:02]} 49. Rb7 {[%clk 0:00:36]}  Ng6+ {[%clk 0:00:02]} 50. Ke4 {[%clk 0:00:36]}  Nf8 {[%clk 0:00:03]} 51. cxd7 {[%clk 0:00:37]}  Nxd7 {[%clk 0:00:03]} 52. Kf5 {[%clk 0:00:37]}  Kd6 {[%clk 0:00:04]} 53. Kxg5 {[%clk 0:00:37]}  Nc5 {[%clk 0:00:05]} 54. Rb6+ {[%clk 0:00:37]}  Ke5 {[%clk 0:00:06]} 55. Kxh4 {[%clk 0:00:36]}  Nd3 {[%clk 0:00:06]} 56. Kg5 {[%clk 0:00:36]}  Ne1 {[%clk 0:00:06]} 57. Rb2 {[%clk 0:00:34]}  Ke4 {[%clk 0:00:06]} 58. Re2+ {[%clk 0:00:34]} 1-0


[Site "https://www.chess.com"]

[Event "Titled Tuesday Blitz April 26 Early 2022"]
[White "Araujo Filho, Luiz Antonio Coel"]
[Black "Unver, Cumali"]
[WhiteFideId "2130661"]
[BlackFideId "6304940"]
[WhiteElo "2323"]
[BlackElo "2013"]
[Result "0-1"]
[Round "05"]
[TimeControl "180+1"]
[Date "2022.04.26"]
[WhiteClock "0:00:22"]
[BlackClock "0:01:57"]

1. d4 {[%clk 0:02:55]}  Nf6 {[%clk 0:02:59]} 2. Nf3 {[%clk 0:02:48]}  d5 {[%clk 0:02:59]} 3. e3 {[%clk 0:02:48]}  c6 {[%clk 0:02:57]} 4. Nbd2 {[%clk 0:02:48]}  Bf5 {[%clk 0:02:55]} 5. b3 {[%clk 0:02:19]}  h6 {[%clk 0:02:53]} 6. Bb2 {[%clk 0:02:10]}  e6 {[%clk 0:02:53]} 7. Be2 {[%clk 0:01:52]}  Nbd7 {[%clk 0:02:51]} 8. O-O {[%clk 0:01:32]}  Be7 {[%clk 0:02:51]} 9. c4 {[%clk 0:01:30]}  O-O {[%clk 0:02:50]} 10. Re1 {[%clk 0:01:29]}  a6 {[%clk 0:02:49]} 11. Rc1 {[%clk 0:01:26]}  b5 {[%clk 0:02:47]} 12. cxd5 {[%clk 0:01:24]}  cxd5 {[%clk 0:02:47]} 13. Ne5 {[%clk 0:01:25]}  Nxe5 {[%clk 0:02:46]} 14. dxe5 {[%clk 0:01:25]}  Nd7 {[%clk 0:02:46]} 15. f4 {[%clk 0:01:25]}  Rc8 {[%clk 0:02:45]} 16. Nf3 {[%clk 0:01:25]}  Nc5 {[%clk 0:02:39]} 17. Nd4 {[%clk 0:01:24]}  Be4 {[%clk 0:02:36]} 18. a4 {[%clk 0:01:18]}  bxa4 {[%clk 0:02:33]} 19. bxa4 {[%clk 0:01:18]}  Qa5 {[%clk 0:02:33]} 20. Kh1 {[%clk 0:01:09]}  Nxa4 {[%clk 0:02:32]} 21. Ba1 {[%clk 0:01:04]}  Nc3 {[%clk 0:02:27]} 22. Bxc3 {[%clk 0:01:01]}  Rxc3 {[%clk 0:02:28]} 23. Rxc3 {[%clk 0:01:00]}  Qxc3 {[%clk 0:02:29]} 24. Bxa6 {[%clk 0:01:00]}  Ra8 {[%clk 0:02:23]} 25. Bf1 {[%clk 0:00:58]}  Ra2 {[%clk 0:02:21]} 26. Qc1 {[%clk 0:00:52]}  Bb4 {[%clk 0:02:06]} 27. Rd1 {[%clk 0:00:24]}  Qxc1 {[%clk 0:01:57]} 28. Rxc1 {[%clk 0:00:22]}  Bd2 {[%clk 0:01:57]} 0-1


[Site "https://www.chess.com"]

[Event "Titled Tuesday Blitz April 26 Early 2022"]
[White "Asavasaetakul, Chawit"]
[Black "Hamley, Ryan"]
[WhiteFideId "6204856"]
[BlackFideId "30959497"]
[WhiteElo "1697"]
[BlackElo "2444"]
[Result "1-0"]
[Round "05"]
[TimeControl "180+1"]
[Date "2022.04.26"]
[WhiteClock "0:00:20"]
[BlackClock "0:00:02"]

1. e4 {[%clk 0:03:00]}  c6 {[%clk 0:02:55]} 2. d4 {[%clk 0:03:00]}  d5 {[%clk 0:02:56]} 3. Nd2 {[%clk 0:03:01]}  dxe4 {[%clk 0:02:56]} 4. Nxe4 {[%clk 0:03:02]}  Nf6 {[%clk 0:02:57]} 5. Nxf6+ {[%clk 0:03:02]}  exf6 {[%clk 0:02:57]} 6. c3 {[%clk 0:03:02]}  Bd6 {[%clk 0:02:58]} 7. Bd3 {[%clk 0:03:02]}  O-O {[%clk 0:02:58]} 8. Ne2 {[%clk 0:03:03]}  Re8 {[%clk 0:02:59]} 9. O-O {[%clk 0:03:03]}  Nd7 {[%clk 0:02:59]} 10. Bf4 {[%clk 0:03:03]}  Nf8 {[%clk 0:02:59]} 11. Qd2 {[%clk 0:03:01]}  Bg4 {[%clk 0:02:58]} 12. Rfe1 {[%clk 0:02:54]}  Ng6 {[%clk 0:02:52]} 13. Bxd6 {[%clk 0:02:51]}  Qxd6 {[%clk 0:02:53]} 14. Ng3 {[%clk 0:02:51]}  Be6 {[%clk 0:02:46]} 15. a3 {[%clk 0:02:39]}  Rad8 {[%clk 0:02:37]} 16. Qc2 {[%clk 0:02:28]}  Bd5 {[%clk 0:02:29]} 17. Rad1 {[%clk 0:02:24]}  b5 {[%clk 0:01:52]} 18. h3 {[%clk 0:02:22]}  a5 {[%clk 0:01:48]} 19. c4 {[%clk 0:02:03]}  Rxe1+ {[%clk 0:01:06]} 20. Rxe1 {[%clk 0:02:03]}  Be6 {[%clk 0:01:07]} 21. cxb5 {[%clk 0:01:57]}  cxb5 {[%clk 0:01:06]} 22. Bxb5 {[%clk 0:01:56]}  Qxd4 {[%clk 0:01:07]} 23. Bf1 {[%clk 0:01:26]}  Rb8 {[%clk 0:01:01]} 24. Rd1 {[%clk 0:01:14]}  Qb6 {[%clk 0:00:49]} 25. Rd2 {[%clk 0:01:11]}  h6 {[%clk 0:00:44]} 26. Qe4 {[%clk 0:00:58]}  Ne5 {[%clk 0:00:38]} 27. Nf5 {[%clk 0:00:54]}  Qb7 {[%clk 0:00:27]} 28. Rd8+ {[%clk 0:00:25]}  Kh7 {[%clk 0:00:26]} 29. Qc2 {[%clk 0:00:25]}  Bb3 {[%clk 0:00:13]} 30. Rxb8 {[%clk 0:00:20]}  Qxb8 {[%clk 0:00:10]} 31. Qe4 {[%clk 0:00:20]}  g6 {[%clk 0:00:09]} 32. Nd4 {[%clk 0:00:20]}  Kg7 {[%clk 0:00:05]} 33. Nxb3 {[%clk 0:00:19]}  Qxb3 {[%clk 0:00:05]} 34. Qd4 {[%clk 0:00:20]}  Qe6 {[%clk 0:00:05]} 35. Qc3 {[%clk 0:00:20]}  Qd5 {[%clk 0:00:05]} 36. b4 {[%clk 0:00:20]}  axb4 {[%clk 0:00:05]} 37. axb4 {[%clk 0:00:21]}  h5 {[%clk 0:00:04]} 38. b5 {[%clk 0:00:21]}  g5 {[%clk 0:00:05]} 39. Qe3 {[%clk 0:00:21]}  g4 {[%clk 0:00:05]} 40. hxg4 {[%clk 0:00:22]}  hxg4 {[%clk 0:00:05]} 41. b6 {[%clk 0:00:22]}  f5 {[%clk 0:00:06]} 42. Qg5+ {[%clk 0:00:22]}  Ng6 {[%clk 0:00:05]} 43. Qe3 {[%clk 0:00:19]}  f4 {[%clk 0:00:05]} 44. Qc3+ {[%clk 0:00:18]}  Kh6 {[%clk 0:00:05]} 45. Qc4 {[%clk 0:00:18]}  Qb7 {[%clk 0:00:04]} 46. Qc7 {[%clk 0:00:18]}  Qxc7 {[%clk 0:00:03]} 47. bxc7 {[%clk 0:00:19]}  Ne7 {[%clk 0:00:04]} 48. Ba6 {[%clk 0:00:18]}  g3 {[%clk 0:00:03]} 49. f3 {[%clk 0:00:17]}  Kg5 {[%clk 0:00:03]} 50. c8=Q {[%clk 0:00:18]}  Nxc8 {[%clk 0:00:03]} 51. Bxc8 {[%clk 0:00:18]}  Kf6 {[%clk 0:00:03]} 52. Kf1 {[%clk 0:00:19]}  Ke5 {[%clk 0:00:04]} 53. Ke2 {[%clk 0:00:19]}  Kd4 {[%clk 0:00:04]} 54. Kd2 {[%clk 0:00:20]}  Kc4 {[%clk 0:00:03]} 55. Bd7 {[%clk 0:00:20]}  Kd4 {[%clk 0:00:04]} 56. Be8 {[%clk 0:00:20]}  f6 {[%clk 0:00:04]} 57. Bf7 {[%clk 0:00:20]}  Ke5 {[%clk 0:00:01]} 58. Kd3 {[%clk 0:00:20]}  Kf5 {[%clk 0:00:02]} 59. Kd4 {[%clk 0:00:20]}  Kg5 {[%clk 0:00:02]} 60. Be6 {[%clk 0:00:20]}  f5 {[%clk 0:00:02]} 61. Ke5 {[%clk 0:00:20]} 1-0


[Site "https://www.chess.com"]

[Event "Titled Tuesday Blitz April 26 Early 2022"]
[White "Belenkaya, Dina"]
[Black "Prieto Aranguren, Alain"]
[WhiteFideId "24142654"]
[BlackFideId "2268906"]
[WhiteElo "2196"]
[BlackElo "2235"]
[Result "1-0"]
[Round "05"]
[TimeControl "180+1"]
[Date "2022.04.26"]
[WhiteClock "0:00:03"]
[BlackClock "0:00:01"]

1. Nf3 {[%clk 0:02:03]}  g6 {[%clk 0:02:58]} 2. g3 {[%clk 0:02:01]}  Bg7 {[%clk 0:02:58]} 3. Bg2 {[%clk 0:02:02]}  d6 {[%clk 0:02:58]} 4. d3 {[%clk 0:02:01]}  Nf6 {[%clk 0:02:56]} 5. Nbd2 {[%clk 0:02:02]}  O-O {[%clk 0:02:56]} 6. e4 {[%clk 0:02:01]}  e5 {[%clk 0:02:56]} 7. O-O {[%clk 0:02:02]}  Nc6 {[%clk 0:02:56]} 8. h3 {[%clk 0:02:01]}  Nd7 {[%clk 0:02:54]} 9. Nc4 {[%clk 0:01:55]}  Nc5 {[%clk 0:02:54]} 10. c3 {[%clk 0:01:54]}  Be6 {[%clk 0:02:51]} 11. b4 {[%clk 0:01:50]}  Nxe4 {[%clk 0:02:44]} 12. dxe4 {[%clk 0:01:42]}  Bxc4 {[%clk 0:02:44]} 13. Re1 {[%clk 0:01:42]}  a5 {[%clk 0:02:41]} 14. Nd2 {[%clk 0:01:28]}  Bd3 {[%clk 0:02:31]} 15. Nb3 {[%clk 0:01:24]}  Bc4 {[%clk 0:02:29]} 16. Nd2 {[%clk 0:01:23]}  Be6 {[%clk 0:02:29]} 17. b5 {[%clk 0:01:23]}  Nb8 {[%clk 0:02:22]} 18. c4 {[%clk 0:01:19]}  Nd7 {[%clk 0:02:22]} 19. a4 {[%clk 0:01:17]}  Nc5 {[%clk 0:02:20]} 20. Ba3 {[%clk 0:01:17]}  b6 {[%clk 0:02:18]} 21. Qc2 {[%clk 0:01:16]}  Qd7 {[%clk 0:02:16]} 22. Rad1 {[%clk 0:01:16]}  Rae8 {[%clk 0:02:15]} 23. Kh2 {[%clk 0:01:15]}  f5 {[%clk 0:02:15]} 24. exf5 {[%clk 0:01:08]}  Bxf5 {[%clk 0:02:11]} 25. Ne4 {[%clk 0:00:58]}  Nxe4 {[%clk 0:02:11]} 26. Bxe4 {[%clk 0:00:56]}  Bxe4 {[%clk 0:02:11]} 27. Rxe4 {[%clk 0:00:57]}  Rf3 {[%clk 0:02:09]} 28. Bc1 {[%clk 0:00:48]}  Ref8 {[%clk 0:02:08]} 29. Be3 {[%clk 0:00:47]}  Qf5 {[%clk 0:02:06]} 30. Rd2 {[%clk 0:00:38]}  h5 {[%clk 0:01:46]} 31. Qd3 {[%clk 0:00:37]}  Kh7 {[%clk 0:01:38]} 32. Qd5 {[%clk 0:00:30]}  g5 {[%clk 0:01:34]} 33. Kg2 {[%clk 0:00:20]}  Rf7 {[%clk 0:01:21]} 34. Qd3 {[%clk 0:00:16]}  Rf6 {[%clk 0:01:05]} 35. Re2 {[%clk 0:00:14]}  Rf7 {[%clk 0:01:01]} 36. Qc2 {[%clk 0:00:14]}  h4 {[%clk 0:00:54]} 37. g4 {[%clk 0:00:11]}  Qg6 {[%clk 0:00:53]} 38. Bc1 {[%clk 0:00:09]}  Qe6 {[%clk 0:00:45]} 39. Rxe5+ {[%clk 0:00:08]}  Qg6 {[%clk 0:00:41]} 40. R5e4 {[%clk 0:00:06]}  Be5 {[%clk 0:00:38]} 41. Qd1 {[%clk 0:00:03]}  Kh6 {[%clk 0:00:37]} 42. Qe1 {[%clk 0:00:04]}  Qf6 {[%clk 0:00:35]} 43. Kg1 {[%clk 0:00:04]}  Rxh3 {[%clk 0:00:34]} 44. R2e3 {[%clk 0:00:03]}  Rxe3 {[%clk 0:00:31]} 45. Qxe3 {[%clk 0:00:04]}  Qf3 {[%clk 0:00:23]} 46. Qxf3 {[%clk 0:00:03]}  Rxf3 {[%clk 0:00:23]} 47. Be3 {[%clk 0:00:04]}  Kg6 {[%clk 0:00:21]} 48. Kg2 {[%clk 0:00:04]}  Rf8 {[%clk 0:00:18]} 49. c5 {[%clk 0:00:05]}  bxc5 {[%clk 0:00:16]} 50. Bxc5 {[%clk 0:00:05]}  Rf4 {[%clk 0:00:08]} 51. Rxf4 {[%clk 0:00:04]}  Bxf4 {[%clk 0:00:08]} 52. Ba7 {[%clk 0:00:02]}  Kf6 {[%clk 0:00:05]} 53. Bb8 {[%clk 0:00:03]}  Ke7 {[%clk 0:00:04]} 54. Bxc7 {[%clk 0:00:02]}  Kd7 {[%clk 0:00:04]} 55. b6 {[%clk 0:00:03]}  Be5 {[%clk 0:00:03]} 56. f3 {[%clk 0:00:03]}  Bd4 {[%clk 0:00:03]} 57. Bb8 {[%clk 0:00:03]}  Bxb6 {[%clk 0:00:02]} 58. Kh3 {[%clk 0:00:03]}  Bc5 {[%clk 0:00:02]} 59. f4 {[%clk 0:00:03]}  gxf4 {[%clk 0:00:01]} 60. g5 {[%clk 0:00:03]}  f3 {[%clk 0:00:01]} 61. g6 {[%clk 0:00:03]} 1-0


[Site "https://www.chess.com"]